bitfinex-derivatives/quotes_SOLF0:USTF0_20250530
["timestamp","ask_amount","ask_price","bid_price","bid_amount"]
[1748628202178,0.0397076,158.58,158.56,6.3052]
[1748628202384,0.0397076,158.58,158.55,32.56]
[1748628203188,0.0397076,158.58,158.56,6.3053]
[1748628203387,0.0397076,158.58,158.55,32.56]
[1748628203584,0.0397076,158.58,158.54,0.0476539]
[1748628204587,6.3446076,158.58,158.55,6.3057]
[1748628204788,6.3446076,158.58,158.54,0.0476539]
[1748628204983,0.0397076,158.58,158.54,0.0476539]
[1748628205285,6.3059,158.55,158.54,0.0476539]
[1748628206185,6.3055,158.56,158.54,0.0476539]
[1748628206390,0.0397076,158.58,158.54,0.0476539]
[1748628206781,6.3059,158.55,158.54,0.0476539]
[1748628208597,0.0397076,158.58,158.54,0.0476539]
[1748628209287,6.3447076,158.58,158.55,6.3059]
[1748628209488,0.0397076,158.58,158.54,0.0476539]
[1748628209686,0.0397076,158.58,158.56,6.3053]
[1748628209988,0.0397076,158.58,158.56,32.56]
[1748628210189,6.3051,158.57,158.56,32.56]
[1748628210392,0.0397076,158.58,158.54,0.0476539]
[1748628210785,6.3059,158.55,158.54,0.0476539]
[1748628213493,6.3075,158.51,158.5,32.56]
[1748628213699,2.132,158.56,158.47,32.68]
[1748628213895,6.3084,158.49,158.47,32.68]
[1748628214894,6.35623031,158.5,158.47,38.989]
[1748628215591,6.35623031,158.5,158.48,6.3086]
[1748628215792,0.04813031,158.5,158.47,32.68]
[1748628216194,0.04813031,158.5,158.49,6.3083]
[1748628219098,32.68,158.61,158.48,18.49320817]
[1748628219398,6.3048,158.58,158.48,22.77300817]
[1748628219597,6.3048,158.58,158.55,6.3059]
[1748628219999,6.35313147,158.58,158.55,6.34880698]
[1748628220194,6.3051,158.57,158.55,0.04290698]
[1748628220398,0.04833147,158.58,158.55,0.04290698]
[1748628220798,6.3055,158.56,158.55,0.04290698]
[1748628222097,0.04833147,158.58,158.55,0.04290698]
[1748628223198,0.04833147,158.58,158.57,6.3051]
[1748628226103,0.04833147,158.58,158.55,0.04290698]
[1748628226699,6.35313147,158.58,158.55,6.34850698]
[1748628227907,0.04833147,158.58,158.57,6.3051]
[1748628228807,0.04833147,158.58,158.57,38.9851]
[1748628229207,0.04833147,158.58,158.57,32.68]
[1748628229405,0.04833147,158.58,158.55,6.34870698]
[1748628229913,6.35323147,158.58,158.55,6.34870698]
[1748628232518,6.3051,158.57,158.55,0.04290698]
[1748628233313,6.35313147,158.58,158.55,0.04290698]
[1748628233816,6.35313147,158.58,158.55,6.34860698]
[1748628234013,0.04833147,158.58,158.55,0.04290698]
[1748628234215,0.04833147,158.58,158.55,6.34860698]
[1748628234715,6.35323147,158.58,158.55,6.34860698]
[1748628235012,0.04833147,158.58,158.55,0.04290698]
[1748628235416,0.04833147,158.58,158.46,123.72]
[1748628235417,0.04833147,158.58,158.51,32.68]
[1748628235714,32.68,158.6,158.5,32.68]
[1748628235912,6.3065,158.54,158.5,32.68]
[1748628236116,6.3065,158.54,158.51,6.3072]
[1748628236314,6.3065,158.54,158.51,6.35223507]
[1748628236614,6.34681909,158.54,158.51,6.35223507]
[1748628237019,6.3067,158.53,158.51,0.04503507]
[1748628237505,0.04031909,158.54,158.51,0.04503507]
[1748628238216,0.04031909,158.54,158.51,6.35233507]
[1748628238917,6.34671909,158.54,158.51,6.35233507]
[1748628239915,0.04031909,158.54,158.52,6.3069]
[1748628240416,0.04031909,158.54,158.53,6.3067]
[1748628241012,6.1511,158.63,158.57,6.3049]
[1748628241212,6.1511,158.63,158.55,32.68]
[1748628241412,6.3046,158.59,158.55,32.68]
[1748628241713,6.1511,158.63,158.55,32.68]
[1748628241906,6.3045,158.59,158.55,32.68]
[1748628242108,0.04780747,158.61,158.57,0.04286971]
[1748628242614,6.3047,158.58,158.57,0.04286971]
[1748628244713,6.3045,158.59,158.57,0.04286971]
[1748628245718,0.04780747,158.61,158.57,0.04286971]
[1748628245910,0.04780747,158.61,158.58,6.3046]
[1748628246118,0.04780747,158.61,158.57,0.04286971]
[1748628246317,6.35160747,158.61,158.57,0.04286971]
[1748628246515,0.04780747,158.61,158.57,0.04286971]
[1748628246713,0.04780747,158.61,158.58,18.49320817]
[1748628246911,0.04780747,158.61,158.59,32.56]
[1748628247121,6.4016,158.69,158.59,32.56]
[1748628247421,32.56,158.74,158.62,18.49320817]
[1748628247623,2.1463,158.73,158.65,6.3018]
[1748628248122,0.04232206,158.71,158.67,0.04817744]
[1748628248915,6.3009,158.68,158.67,0.04817744]
[1748628249314,0.04232206,158.71,158.63,32.56]
[1748628249524,6.3023,158.64,158.63,32.56]
[1748628250821,6.34304351,158.65,158.63,32.56]
[1748628253225,6.3023,158.64,158.63,32.56]
[1748628253531,0.04094351,158.65,158.62,0.04260589]
[1748628253825,6.3027,158.63,158.62,0.04260589]
[1748628256128,6.3024,158.64,158.62,0.04260589]
[1748628256929,0.04094351,158.65,158.62,6.34570589]
[1748628257124,0.04094351,158.65,158.62,0.04260589]
[1748628258227,6.3023,158.64,158.62,0.04260589]
[1748628259325,6.34304351,158.65,158.62,6.34570589]
[1748628259532,0.04094351,158.65,158.62,0.04260589]
[1748628259728,0.04094351,158.65,158.46,63.6538851]
[1748628259936,32.56,158.64,158.52,32.56]
[1748628260230,6.3047,158.58,158.53,32.56]
[1748628260424,4.3159,158.63,158.53,38.8666]
[1748628260620,4.3159,158.63,158.53,32.56]
[1748628260824,0.04137115,158.6,158.56,0.04351443]
[1748628261418,6.3054,158.57,158.56,0.04351443]
[1748628262226,0.04137115,158.6,158.56,0.04351443]
[1748628262427,0.04137115,158.6,158.57,32.56]
[1748628263126,6.3047,158.58,158.57,32.56]
[1748628264935,6.3051,158.57,158.56,0.04351443]
[1748628265129,0.04137115,158.6,158.56,0.04351443]
[1748628266135,6.3048,158.58,158.56,0.04351443]
[1748628266332,0.04137115,158.6,158.56,0.04351443]
[1748628266932,6.3045,158.59,158.56,6.34881443]
[1748628268231,6.3048,158.58,158.56,0.04351443]
[1748628269735,0.04137115,158.6,158.56,0.04351443]
[1748628270236,6.34557115,158.6,158.56,6.34881443]
[1748628270537,0.04137115,158.6,158.56,6.34881443]
[1748628270832,0.04137115,158.6,158.56,0.04351443]
[1748628271530,6.3046,158.59,158.56,0.04351443]
[1748628271725,0.04137115,158.6,158.56,0.04351443]
[1748628272934,6.3051,158.57,158.56,0.04351443]
[1748628276328,6.2422,158.59,158.53,32.54]
[1748628276329,6.3063,158.54,158.53,32.54]
[1748628278135,6.3067,158.53,158.52,0.04620013]
[1748628278537,6.3087,158.48,158.47,32.56]
[1748628278732,32.56,158.54,158.44,544.4]
[1748628278931,6.3725,158.53,158.45,32.56]
[1748628279131,6.3095,158.46,158.45,32.56]
[1748628280135,6.3099,158.45,158.44,0.04044632]
[1748628280436,0.0458903,158.47,158.41,32.56]
[1748628281241,0.0458903,158.47,158.44,6.31]
[1748628282131,0.0458903,158.47,158.45,6.3098]
[1748628283139,0.0458903,158.47,158.44,6.3101]
[1748628283335,6.3549903,158.47,158.44,6.3101]
[1748628284940,6.3101,158.45,158.42,0.04437721]
[1748628285137,0.0458903,158.47,158.42,0.04437721]
[1748628285640,6.3107,158.43,158.42,0.04437721]
[1748628287241,6.3104,158.44,158.42,0.04437721]
[1748628287439,0.0458903,158.47,158.42,0.04437721]
[1748628287942,6.3551903,158.47,158.44,6.3101]
[1748628288242,6.3551903,158.47,158.42,0.04437721]
[1748628288646,6.3096,158.46,158.42,0.04437721]
[1748628289041,0.0458903,158.47,158.43,6.3104]
[1748628289445,6.3097,158.46,158.43,6.3104]
[1748628289941,6.3550903,158.47,158.44,6.3102]
[1748628290245,0.0458903,158.47,158.42,0.04437721]
[1748628291841,6.3101,158.45,158.42,0.04437721]
[1748628292236,6.3101,158.45,158.42,6.35527721]
[1748628293236,6.3103,158.44,158.42,0.04437721]
[1748628293435,0.0458903,158.47,158.42,0.04437721]
[1748628293843,6.3107,158.43,158.42,0.04437721]
[1748628297445,6.3114,158.42,158.38,32.58]
[1748628298048,6.3116,158.41,158.39,6.312]
[1748628298244,2.0907,158.46,158.38,32.58]
[1748628298553,6.3115,158.41,158.4,0.04837713]
[1748628300352,6.3115,158.41,158.36,20.48130432]
[1748628300353,32.61999197,158.44,158.28,121.38819157]
[1748628300558,32.58,158.44,158.29,178.89020432]
[1748628300949,32.58,158.44,158.33,18.48290432]
[1748628301153,32.58,158.44,158.34,32.58]
[1748628301456,0.04076321,158.41,158.34,32.58]
[1748628301654,6.3119,158.4,158.38,6.3126]
[1748628302950,6.35236321,158.41,158.38,6.3126]
[1748628303451,0.04076321,158.41,158.39,6.3121]
[1748628303646,0.04076321,158.41,158.38,32.56]
[1748628304145,6.35256321,158.41,158.38,38.8724]
[1748628304354,0.04076321,158.41,158.38,32.56]
[1748628304758,6.3123,158.39,158.38,32.56]
[1748628305152,6.35236321,158.41,158.38,38.8726]
[1748628305355,0.04076321,158.41,158.38,32.56]
[1748628305757,6.3121,158.4,158.38,32.56]
[1748628306358,0.04076321,158.41,158.38,32.56]
[1748628306856,14.63,158.43,158.38,32.60216149]
[1748628307055,6.3089,158.48,158.39,4.0889]
[1748628307552,6.3089,158.48,158.44,6.31]
[1748628307752,6.35413177,158.48,158.44,6.35844441]
[1748628307961,6.35413177,158.48,158.45,6.3099]
[1748628308357,0.04523177,158.48,158.44,0.04844441]
[1748628309456,0.04523177,158.48,158.47,6.3091]
[1748628310363,0.04523177,158.48,158.46,6.3093]
[1748628310765,0.04523177,158.48,158.46,6.3092]
[1748628310964,0.04523177,158.48,158.44,0.04844441]
[1748628311564,0.04523177,158.48,158.45,6.3098]
[1748628312363,0.04523177,158.48,158.46,6.3094]
[1748628312969,0.04523177,158.48,158.44,0.04844441]
[1748628315265,7.41,158.52,158.45,18.48290432]
[1748628315565,7.41,158.52,158.51,6.3075]
[1748628316267,7.41,158.52,158.5,32.60833311]
[1748628316565,7.41,158.52,158.37,32.56]
[1748628316566,32.56,158.51,158.37,32.56]
[1748628316771,6.3101,158.45,158.39,6.3119]
[1748628317367,6.3104,158.44,158.39,6.3119]
[1748628317565,6.35666337,158.44,158.4,0.04376434]
[1748628317765,6.35666337,158.44,158.41,32.56]
[1748628318168,6.3109,158.43,158.41,32.56]
[1748628318367,0.04626337,158.44,158.41,32.56]
[1748628318773,6.3111,158.42,158.41,32.56]
[1748628319169,0.04626337,158.44,158.41,32.56]
[1748628319372,6.3111,158.42,158.41,32.56]
[1748628322569,0.04626337,158.44,158.28,108.75489157]
[1748628322776,2.0549,158.43,158.32,6.3148]
[1748628322969,4.0984,158.42,158.33,32.56]
[1748628323369,4.0984,158.42,158.33,38.8746]
[1748628323572,0.0478811,158.39,158.33,38.8746]
[1748628324570,6.3134,158.37,158.33,38.8746]
[1748628324977,6.3134,158.37,158.34,6.3142]
[1748628325275,6.3134,158.37,158.33,32.56]
[1748628325468,6.3134,158.37,158.33,38.8744]
[1748628325672,6.3136,158.36,158.33,38.8744]
[1748628326475,6.3132,158.37,158.33,38.8744]
[1748628327670,6.3135,158.36,158.33,32.56]
[1748628328470,0.0478811,158.39,158.33,32.56]
[1748628328981,6.3138,158.36,158.33,32.56]
[1748628329977,6.315,158.33,158.23,18.51231072]
[1748628330185,0.04341733,158.3,158.24,32.58]
[1748628330384,0.04341733,158.3,158.29,6.3162]
[1748628330578,32.58,158.41,158.29,32.58]
[1748628330971,6.3135,158.36,158.32,6.3148]
[1748628331175,32.58,158.41,158.33,32.58]
[1748628331683,6.3141,158.35,158.33,32.58]
[1748628331876,32.58,158.41,158.33,32.58]
[1748628331877,0.04760938,158.36,158.33,32.58]
[1748628332078,6.3139,158.35,158.33,32.62546589]
[1748628334176,6.3139,158.35,158.33,38.94006589]
[1748628334383,0.04760938,158.36,158.33,32.62546589]
[1748628334781,6.36130938,158.36,158.33,38.93996589]
[1748628335184,0.04760938,158.36,158.33,32.62546589]
[1748628335488,6.3143,158.34,158.33,32.62546589]
[1748628335883,6.3143,158.34,158.33,0.04546589]
[1748628336784,0.04760938,158.36,158.3,32.7]
[1748628337581,0.04760938,158.36,158.29,6.3161]
[1748628337582,32.74760938,158.36,158.22,32.7]
[1748628337780,0.04004254,158.31,158.22,32.7]
[1748628337983,6.3171,158.27,158.24,6.318]
[1748628338183,0.041443,158.27,158.22,32.7]
[1748628339089,6.3177,158.26,158.23,6.3185]
[1748628339690,0.041443,158.27,158.24,6.3182]
[1748628340090,0.041443,158.27,158.22,32.7]
[1748628340292,6.3175,158.26,158.23,6.3184]
[1748628340491,0.041443,158.27,158.23,6.3184]
[1748628340684,0.041443,158.27,158.22,32.7]
[1748628341194,6.358743,158.27,158.24,6.3181]
[1748628341486,6.358743,158.27,158.22,32.7]
[1748628341891,6.358743,158.27,158.23,6.3184]
[1748628342292,6.3175,158.26,158.23,6.3184]
[1748628343294,0.041443,158.27,158.24,6.3181]
[1748628343686,0.041443,158.27,158.22,32.7]
[1748628344083,0.041443,158.27,158.26,6.3174]
[1748628344290,13.67,158.31,158.26,32.7]
[1748628344993,19.9857,158.31,158.26,32.7]
[1748628345192,0.03994662,158.3,158.27,0.04073737]
[1748628345393,0.03994662,158.3,158.28,6.3164]
[1748628345596,0.03994662,158.3,158.27,0.04073737]
[1748628346484,0.03994662,158.3,158.29,6.3162]
[1748628347787,13.67,158.31,158.3,6.3158]
[1748628347993,11.6289,158.39,158.3,156.92]
[1748628348289,6.3134,158.37,158.33,6.3144]
[1748628348493,6.3134,158.37,158.34,32.7]
[1748628348688,9.4567,158.39,158.34,32.7475311]
[1748628348895,0.04860139,158.37,158.34,32.7475311]
[1748628349889,6.3139,158.35,158.34,32.7475311]
[1748628350095,0.04860139,158.37,158.34,32.7475311]
[1748628350499,6.36190139,158.37,158.34,32.7475311]
[1748628350893,6.36190139,158.37,158.34,39.0615311]
[1748628351093,0.04860139,158.37,158.34,32.7475311]
[1748628351494,0.04860139,158.37,158.35,6.3136]
[1748628352203,32.74860139,158.37,158.24,32.7]
[1748628352495,32.7,158.4,158.25,2.1413]
[1748628352696,6.3147,158.33,158.25,2.1413]
[1748628353090,6.3151,158.32,158.28,6.3164]
[1748628353286,32.7,158.4,158.29,32.7]
[1748628353689,0.04119372,158.36,158.33,0.04345924]
[1748628353891,0.04119372,158.36,158.34,32.7]
[1748628354493,2.0355,158.42,158.34,32.7]
[1748628354693,1.19,158.44,158.37,6.3128]
[1748628354894,1.19,158.44,158.38,32.7]
[1748628355094,1.19,158.44,158.39,32.7]
[1748628355295,7.41,158.42,158.39,32.7]
[1748628355495,7.45127779,158.42,158.39,32.74629709]
[1748628356199,13.76257779,158.42,158.39,32.74629709]
[1748628356594,7.45127779,158.42,158.39,32.74629709]
[1748628357998,7.45127779,158.42,158.39,0.04629709]
[1748628358502,6.3119,158.4,158.39,0.04629709]
[1748628359402,7.45127779,158.42,158.39,0.04629709]
[1748628359801,13.76237779,158.42,158.39,0.04629709]
[1748628360003,7.45127779,158.42,158.39,0.04629709]
[1748628360205,13.76247779,158.42,158.39,0.04629709]
[1748628360704,7.45127779,158.42,158.39,0.04629709]
[1748628360906,6.3118,158.41,158.39,0.04629709]
[1748628361097,7.45127779,158.42,158.39,0.04629709]
[1748628362604,6.3119,158.4,158.39,0.04629709]
[1748628368403,6.3131,158.37,158.36,32.7]
[1748628368610,6.3131,158.37,158.25,62.0]
[1748628368611,17.1184,158.41,158.33,33.2]
[1748628368904,6.3153,158.32,158.3,578.58]
[1748628369105,33.2,158.39,158.3,33.2]
[1748628369507,6.3143,158.34,158.33,0.03835587]
[1748628373015,6.314,158.35,158.33,0.03835587]
[1748628373213,0.04418791,158.36,158.33,0.03835587]
[1748628373512,0.04418791,158.36,158.34,39.514]
[1748628373716,0.04418791,158.36,158.34,33.2]
[1748628373917,0.04418791,158.36,158.35,6.3139]
[1748628374114,0.04418791,158.36,158.34,33.2]
[1748628374916,0.04418791,158.36,158.35,6.3139]
[1748628375505,7.41,158.37,158.36,6.3135]
[1748628377913,0.04690283,158.38,158.37,6.3131]
[1748628382316,12.98,158.41,158.37,6.3131]
[1748628382621,12.98,158.41,158.4,6.3119]
[1748628383316,12.98,158.41,158.39,6.3121]
[1748628383618,12.98,158.41,158.39,6.35995555]
[1748628383821,12.98,158.41,158.39,0.04785555]
[1748628384416,6.3119,158.4,158.39,0.04785555]
[1748628385008,19.2916,158.41,158.39,0.04785555]
[1748628385207,12.98,158.41,158.39,0.04785555]
[1748628385712,12.98,158.41,158.27,33.2]
[1748628385914,12.98,158.41,158.27,35.3633]
[1748628386109,6.3151,158.32,158.27,33.2]
[1748628386310,31.51377533,158.41,158.27,33.2]
[1748628386311,33.2,158.38,158.27,33.2]
[1748628386515,4.1922,158.37,158.27,33.2]
[1748628386714,0.04203744,158.34,158.3,0.04402318]
[1748628386920,6.3153,158.32,158.3,0.04402318]
[1748628388124,0.04203744,158.34,158.3,0.04402318]
[1748628388520,0.04203744,158.34,158.31,33.2]
[1748628389021,12.98,158.41,158.32,18.53377533]
[1748628389228,12.98,158.41,158.38,6.3124]
[1748628389424,12.98,158.41,158.38,33.2]
[1748628390027,13.02082248,158.41,158.38,33.2468799]
[1748628390929,13.02082248,158.41,158.4,6.3119]
[1748628391233,2.1744,158.48,158.4,18.53377533]
[1748628392128,0.04791158,158.44,158.43,6.3107]
[1748628392325,0.04791158,158.44,158.43,39.5107]
[1748628393929,2.0291,158.52,158.44,6.3103]
[1748628394131,6.3084,158.49,158.44,6.3103]
[1748628394427,10.04,158.5,158.44,6.3103]
[1748628394823,16.3481,158.5,158.44,6.3103]
[1748628395130,0.04722543,158.46,158.44,6.3103]
[1748628395429,0.04722543,158.46,158.45,6.3099]
[1748628396640,10.04,158.5,158.49,6.3083]
[1748628396832,10.04,158.5,158.49,39.4283]
[1748628397336,2.1488,158.6,158.49,33.12]
[1748628397633,0.04492288,158.56,158.53,0.04447584]
[1748628397835,0.04492288,158.56,158.54,33.12]
[1748628398429,6.35042288,158.56,158.54,33.12]
[1748628398728,0.04492288,158.56,158.54,33.12]
[1748628399034,0.04492288,158.56,158.53,0.04447584]
[1748628399631,6.3063,158.54,158.53,0.04447584]
[1748628401933,8.379,158.55,158.53,0.04447584]
[1748628402339,0.04492288,158.56,158.53,0.04447584]
[1748628402536,0.04492288,158.56,158.53,6.35107584]
[1748628402737,0.04492288,158.56,158.53,0.04447584]
[1748628403834,6.3059,158.55,158.53,0.04447584]
[1748628404236,0.04492288,158.56,158.53,0.04447584]
[1748628404436,6.3059,158.55,158.53,0.04447584]
[1748628404836,0.04492288,158.56,158.53,0.04447584]
[1748628405539,6.35072288,158.56,158.53,0.04447584]
[1748628405940,6.3059,158.55,158.53,0.04447584]
[1748628406142,0.04492288,158.56,158.53,0.04447584]
[1748628407145,6.3062,158.55,158.53,0.04447584]
[1748628407542,0.04492288,158.56,158.53,0.04447584]
[1748628408139,6.35072288,158.56,158.53,0.04447584]
[1748628408845,0.04492288,158.56,158.53,0.04447584]
[1748628409242,0.04492288,158.56,158.55,6.3059]
[1748628410346,13.18,158.6,158.59,6.3043]
[1748628410542,13.18,158.6,158.59,39.4043]
[1748628410853,4.13,158.67,158.59,33.1]
[1748628411448,6.3475296,158.65,158.61,6.34318494]
[1748628412250,6.3024,158.64,158.61,0.03988494]
[1748628413454,6.3477296,158.65,158.61,6.34338494]
[1748628413954,0.0456296,158.65,158.61,6.34338494]
[1748628414554,6.3476296,158.65,158.61,6.34338494]
[1748628415056,0.0456296,158.65,158.62,6.3031]
[1748628415257,0.0456296,158.65,158.63,33.1]
[1748628415755,0.0456296,158.65,158.63,39.4026]
[1748628417653,0.0456296,158.65,158.64,6.3023]
[1748628418656,12.04,158.68,158.67,6.3011]
[1748628418860,12.04,158.68,158.67,39.3811]
[1748628419060,12.04,158.68,158.67,164.0811]
[1748628420359,2.0611,158.76,158.67,157.78]
[1748628420957,8.3589,158.76,158.67,157.78]
[1748628421362,0.04436083,158.73,158.71,6.2992]
[1748628421557,0.04436083,158.73,158.72,33.08]
[1748628422456,0.04436083,158.73,158.72,39.3791]
[1748628423067,33.08,158.87,158.72,51.57393849]
[1748628423262,2.0745,158.84,158.72,595.91393849]
[1748628423464,2.0745,158.84,158.73,62.0]
[1748628423664,2.0745,158.84,158.77,18.49393849]
[1748628423862,2.0745,158.84,158.78,157.84]
[1748628424058,0.04364358,158.83,158.79,0.04437504]
[1748628425862,6.296,158.8,158.79,0.04437504]
[1748628426170,1.9968,158.82,158.78,33.08]
[1748628426365,0.04364358,158.83,158.79,33.3]
[1748628426571,6.2949,158.83,158.79,33.3]
[1748628426763,2.0745,158.84,158.79,33.3]
[1748628427172,0.04222025,158.83,158.8,0.04234903]
[1748628427767,6.2956,158.81,158.8,0.04234903]
[1748628428268,0.04222025,158.83,158.76,33.28]
[1748628428873,0.04222025,158.83,158.76,39.5774]
[1748628429471,6.2962,158.8,158.78,0.04215237]
[1748628429874,6.2952,158.82,158.78,0.04215237]
[1748628430276,0.04222025,158.83,158.78,0.04215237]
[1748628430769,0.04222025,158.83,158.78,62.04215237]
[1748628430965,0.04222025,158.83,158.81,6.2953]
[1748628431168,0.04222025,158.83,158.82,33.28]
[1748628431675,0.04222025,158.83,158.82,39.5752]
[1748628431971,0.04222025,158.83,158.82,33.28]
[1748628434569,11.2,158.86,158.82,33.28]
[1748628434780,6.0372,158.95,158.84,18.49393849]
[1748628435268,6.0372,158.95,158.82,33.28]
[1748628435465,0.03981644,158.9,158.87,0.04628622]
[1748628435774,0.03981644,158.9,158.87,33.30628622]
[1748628436070,6.2947,158.84,158.8,6.2959]
[1748628436269,33.26,158.89,158.79,33.26]
[1748628436474,18.49393849,158.93,158.79,33.26]
[1748628436475,37.2801,158.88,158.79,33.26]
[1748628436775,33.26,158.87,158.79,33.26]
[1748628437069,0.0447265,158.85,158.81,0.04517659]
[1748628437273,6.2951,158.83,158.81,0.04517659]
[1748628437467,0.0447265,158.85,158.81,0.04517659]
[1748628437872,6.2945,158.84,158.81,6.34047659]
[1748628438073,0.0447265,158.85,158.81,0.04517659]
[1748628438369,0.0447265,158.85,158.83,6.2947]
[1748628439375,0.0447265,158.85,158.84,6.2944]
[1748628439775,14.33,158.88,158.83,33.26]
[1748628439972,14.33,158.88,158.87,6.2932]
[1748628440179,14.33,158.88,158.83,33.26]
[1748628440875,0.04387574,158.87,158.84,0.04733133]
[1748628441079,4.2576,158.94,158.85,18.49393849]
[1748628441574,6.2894,158.97,158.93,6.2907]
[1748628441775,2.0093,158.98,158.92,33.26]
[1748628442174,6.33652412,158.97,158.93,0.04777964]
[1748628442678,6.2897,158.96,158.93,0.04777964]
[1748628442879,0.04702412,158.97,158.93,0.04777964]
[1748628443278,6.33652412,158.97,158.93,6.33857964]
[1748628443479,0.04702412,158.97,158.93,6.33857964]
[1748628443679,6.2896,158.96,158.93,0.04777964]
[1748628444277,0.04702412,158.97,158.93,0.04777964]
[1748628445676,6.33632412,158.97,158.93,6.33847964]
[1748628445882,0.04702412,158.97,158.93,0.04777964]
[1748628447886,0.04702412,158.97,158.96,6.2896]
[1748628448085,0.04702412,158.97,158.96,39.5296]
[1748628449079,0.04702412,158.97,158.96,33.24]
[1748628449780,0.04702412,158.97,158.96,39.5296]
[1748628452190,0.41,159.0,158.99,6.2885]
[1748628453586,2.1837,159.06,158.98,0.04270661]
[1748628454290,2.1837,159.06,159.03,6.2865]
[1748628454593,2.23096911,159.06,159.03,6.33061669]
[1748628454789,0.04726911,159.06,159.03,0.04411669]
[1748628455189,0.04726911,159.06,159.03,6.33091669]
[1748628455989,0.04726911,159.06,159.03,0.04411669]
[1748628456289,1.9917,159.12,159.07,6.285]
[1748628456486,1.9917,159.12,159.08,33.18]
[1748628456693,8.2752,159.12,159.08,33.18]
[1748628456886,1.9917,159.12,159.08,33.18]
[1748628457189,1.9917,159.12,159.08,33.22034827]
[1748628457190,6.2845,159.09,159.08,33.22034827]
[1748628457686,6.2845,159.09,159.08,0.04034827]
[1748628458790,2.03554744,159.12,159.08,0.04034827]
[1748628459388,6.2841,159.11,159.08,0.04034827]
[1748628459593,2.03554744,159.12,159.08,0.04034827]
[1748628459996,6.2845,159.1,159.08,0.04034827]
[1748628460491,2.03554744,159.12,159.08,0.04034827]
[1748628461191,8.31894744,159.12,159.09,6.2842]
[1748628461888,6.2838,159.11,159.08,6.32514827]
[1748628462089,6.2838,159.11,159.08,0.04034827]
[1748628462695,6.2838,159.11,159.08,6.32524827]
[1748628462896,6.2842,159.1,159.08,0.04034827]
[1748628463397,6.2839,159.11,159.08,0.04034827]
[1748628464195,6.2839,159.11,159.08,6.32514827]
[1748628464393,6.2842,159.1,159.08,0.04034827]
[1748628464695,2.03554744,159.12,159.08,0.04034827]
[1748628465197,6.284,159.11,159.08,6.32514827]
[1748628465388,2.03554744,159.12,159.08,0.04034827]
[1748628466289,2.03554744,159.12,159.02,543.28]
[1748628466494,1.9917,159.12,159.03,33.14]
[1748628466694,1.9917,159.12,159.01,33.14]
[1748628466889,6.2867,159.04,159.01,6.2876]
[1748628467195,0.04225008,159.04,159.01,0.04142481]
[1748628467599,6.32905008,159.04,159.01,6.32902481]
[1748628467798,0.04225008,159.04,159.01,0.04142481]
[1748628468097,6.2871,159.03,159.01,0.04142481]
[1748628468497,0.04225008,159.04,159.01,0.04142481]
[1748628469001,0.04225008,159.04,159.03,6.2869]
[1748628469505,0.04225008,159.04,159.01,0.04142481]
[1748628471291,6.2869,159.03,159.01,0.04142481]
[1748628472297,0.04225008,159.04,159.01,0.04142481]
[1748628472506,0.04225008,159.04,159.02,6.2872]
[1748628473300,0.04225008,159.04,159.01,33.20142481]
[1748628474205,6.2872,159.03,159.01,33.20142481]
[1748628474595,6.2873,159.02,159.01,33.20142481]
[1748628474802,6.2873,159.02,159.01,0.04142481]
[1748628477002,0.04225008,159.04,158.95,33.16]
[1748628477198,2.0913,159.05,158.95,33.16]
[1748628477406,2.0913,159.05,158.88,127.77205127]
[1748628477407,18.49393849,159.02,158.89,33.16]
[1748628477708,12.5733,159.04,158.85,542.98]
[1748628477709,33.16,159.05,158.9,158.9]
[1748628477897,4.2523,159.03,158.91,51.55587704]
[1748628478099,4.2523,159.03,158.96,0.04158085]
[1748628478100,0.04078206,158.99,158.96,0.04158085]
[1748628478302,2.0528,159.04,158.97,33.16]
[1748628478609,2.0528,159.04,158.97,159.26]
[1748628478814,2.0528,159.04,158.99,6.2881]